[Event "Live Chess"]
[Site "Chess.com"]
[Date "2023.05.21"]
[Round "-"]
[White "DoYouLikeCurry"]
[Black "slava_ukr"]
[Result "0-1"]
[WhiteElo "1457"]
[BlackElo "2337"]
[TimeControl "300"]
[EndTime "8:02:23 PDT"]
[Termination "slava_ukr won by resignation"]

1. e4 {[%clk 0:04:57.4]} 1... c5 {[%clk 0:04:58.7]} 2. Nc3 {[%clk 0:04:55]} 2...
Nc6 {[%clk 0:04:58]} 3. f4 {[%clk 0:04:53.2]} 3... g6 {[%clk 0:04:55]} 4. Nf3
{[%clk 0:04:50.8]} 4... Bg7 {[%clk 0:04:54.2]} 5. Be2 {[%clk 0:04:46.4]} 5... e6
{[%clk 0:04:53]} 6. d3 {[%clk 0:04:45.6]} 6... Nge7 {[%clk 0:04:52.3]} 7. O-O
{[%clk 0:04:44.7]} 7... O-O {[%clk 0:04:51.3]} 8. Qe1 {[%clk 0:04:43.9]} 8... d5
{[%clk 0:04:47.2]} 9. Qh4 {[%clk 0:04:41.8]} 9... Nd4 {[%clk 0:04:41]} 10. f5
{[%clk 0:04:38.6]} 10... exf5 {[%clk 0:04:30.5]} 11. Bh6 {[%clk 0:04:32]} 11...
f6 {[%clk 0:04:25.4]} 12. Bxg7 {[%clk 0:04:24.2]} 12... Kxg7 {[%clk 0:04:24.2]}
13. exf5 {[%clk 0:04:20.1]} 13... Nexf5 {[%clk 0:04:21.2]} 14. Qf2 {[%clk
0:04:08.5]} 14... Nxc2 {[%clk 0:03:55.1]} 15. Rac1 {[%clk 0:03:57.9]} 15... Nce3
{[%clk 0:03:46.4]} 16. Rfe1 {[%clk 0:03:51.9]} 16... d4 {[%clk 0:03:43.4]} 17.
Ne4 {[%clk 0:03:47.6]} 17... b6 {[%clk 0:03:41.3]} 18. g4 {[%clk 0:03:39.1]}
18... Nxg4 {[%clk 0:03:38.3]} 19. Qg2 {[%clk 0:03:30.8]} 19... Nge3 {[%clk
0:03:36.7]} 20. Qf2 {[%clk 0:03:30.1]} 20... Bb7 {[%clk 0:03:35.1]} 21. Kh1
{[%clk 0:03:20]} 21... Qc7 {[%clk 0:03:26.4]} 22. Rg1 {[%clk 0:03:16.9]} 22...
Rae8 {[%clk 0:03:23.8]} 23. Rxg6+ {[%clk 0:03:13.4]} 23... hxg6 {[%clk
0:03:21.4]} 0-1

[Event "Live Chess"]
[Site "Chess.com"]
[Date "2023.05.21"]
[Round "-"]
[White "Bob2pen"]
[Black "EdenHazard8"]
[Result "1/2-1/2"]
[WhiteElo "1881"]
[BlackElo "1925"]
[TimeControl "300"]
[EndTime "8:02:25 PDT"]
[Termination "Game drawn - insufficient material"]

1. e4 {[%clk 0:04:55.7]} 1... e5 {[%clk 0:04:55.8]} 2. Nf3 {[%clk 0:04:54.6]}
2... Nc6 {[%clk 0:04:51.8]} 3. Bb5 {[%clk 0:04:53.1]} 3... a6 {[%clk 0:04:50.6]}
4. Ba4 {[%clk 0:04:51.7]} 4... Nf6 {[%clk 0:04:49.1]} 5. O-O {[%clk 0:04:50.8]}
5... Be7 {[%clk 0:04:45.5]} 6. Re1 {[%clk 0:04:49.3]} 6... b5 {[%clk 0:04:43.7]}
7. Bb3 {[%clk 0:04:48.2]} 7... O-O {[%clk 0:04:41.5]} 8. c3 {[%clk 0:04:47.4]}
8... d6 {[%clk 0:04:38.8]} 9. h3 {[%clk 0:04:45.4]} 9... Na5 {[%clk 0:04:34.6]}
10. Bc2 {[%clk 0:04:44.4]} 10... c5 {[%clk 0:04:33.8]} 11. d4 {[%clk 0:04:43.4]}
11... cxd4 {[%clk 0:04:26.2]} 12. cxd4 {[%clk 0:04:42.2]} 12... exd4 {[%clk
0:04:26.1]} 13. Nxd4 {[%clk 0:04:39.3]} 13... Bb7 {[%clk 0:04:20.9]} 14. Nc3
{[%clk 0:04:36.6]} 14... Rc8 {[%clk 0:04:17.8]} 15. Bg5 {[%clk 0:04:30.9]} 15...
Nc4 {[%clk 0:04:12.5]} 16. b3 {[%clk 0:04:18.9]} 16... Na3 {[%clk 0:04:09]} 17.
Qd3 {[%clk 0:04:01.2]} 17... Nxc2 {[%clk 0:04:04.2]} 18. Nxc2 {[%clk 0:03:59.8]}
18... Nd7 {[%clk 0:03:59.3]} 19. Bxe7 {[%clk 0:03:57.6]} 19... Qxe7 {[%clk
0:03:59.2]} 20. Nd5 {[%clk 0:03:55.5]} 20... Bxd5 {[%clk 0:03:56.4]} 21. exd5
{[%clk 0:03:53.4]} 21... Ne5 {[%clk 0:03:56.3]} 22. Qe2 {[%clk 0:03:45.9]} 22...
Qg5 {[%clk 0:03:52.8]} 23. Qe3 {[%clk 0:03:20.6]} 23... Qg6 {[%clk 0:03:42.1]}
24. Nd4 {[%clk 0:03:16.6]} 24... Rfe8 {[%clk 0:03:39.7]} 25. Qg3 {[%clk
0:03:04.2]} 25... Qxg3 {[%clk 0:03:33.8]} 26. fxg3 {[%clk 0:03:03]} 26... Nd3
{[%clk 0:03:29.3]} 27. Rxe8+ {[%clk 0:02:59]} 27... Rxe8 {[%clk 0:03:29.2]} 28.
Rd1 {[%clk 0:02:55.4]} 28... Re3 {[%clk 0:03:23.5]} 29. Nf5 {[%clk 0:02:52]}
29... Re1+ {[%clk 0:03:13.9]} 30. Rxe1 {[%clk 0:02:47.4]} 30... Nxe1 {[%clk
0:03:13.8]} 31. Nxd6 {[%clk 0:02:46.4]} 31... Nc2 {[%clk 0:03:12.8]} 32. Nb7
{[%clk 0:02:41]} 32... Kf8 {[%clk 0:03:08.2]} 33. Kf2 {[%clk 0:02:37.3]} 33...
Ke8 {[%clk 0:03:06.3]} 34. Kf3 {[%clk 0:02:34.8]} 34... Kd7 {[%clk 0:03:05.1]}
35. Ke4 {[%clk 0:02:33.8]} 35... Nb4 {[%clk 0:03:02.2]} 36. a3 {[%clk
0:02:30.3]} 36... Nc2 {[%clk 0:03:01]} 37. a4 {[%clk 0:02:28.3]} 37... b4 {[%clk
0:02:57.3]} 38. Nc5+ {[%clk 0:02:26]} 38... Kd6 {[%clk 0:02:56.4]} 39. Nxa6
{[%clk 0:02:24.6]} 39... g6 {[%clk 0:02:55.1]} 40. g4 {[%clk 0:02:20.8]} 40...
h5 {[%clk 0:02:53.3]} 41. gxh5 {[%clk 0:02:18.7]} 41... gxh5 {[%clk 0:02:53.2]}
42. Nb8 {[%clk 0:02:17.7]} 42... Na1 {[%clk 0:02:49.3]} 43. Nc6 {[%clk
0:02:15.1]} 43... Nxb3 {[%clk 0:02:47.8]} 44. Nxb4 {[%clk 0:02:14]} 44... Nc5+
{[%clk 0:02:46.8]} 45. Kf5 {[%clk 0:02:09.3]} 45... Nxa4 {[%clk 0:02:46.7]} 46.
Kg5 {[%clk 0:02:06.1]} 46... Kc5 {[%clk 0:02:45.5]} 47. Nc2 {[%clk 0:02:01.5]}
47... Kxd5 {[%clk 0:02:43.6]} 48. Kxh5 {[%clk 0:02:00.7]} 48... Ke5 {[%clk
0:02:41.2]} 49. Kg5 {[%clk 0:01:57.9]} 49... Nc5 {[%clk 0:02:39.6]} 50. h4
{[%clk 0:01:54]} 50... Ne4+ {[%clk 0:02:38.6]} 51. Kg4 {[%clk 0:01:50.1]} 51...
Nf6+ {[%clk 0:02:36.1]} 52. Kf3 {[%clk 0:01:46.9]} 52... Nd5 {[%clk 0:02:33.8]}
53. Ne3 {[%clk 0:01:44.6]} 53... Ne7 {[%clk 0:02:31.6]} 54. g4 {[%clk
0:01:41.9]} 54... f5 {[%clk 0:02:30]} 55. g5 {[%clk 0:01:40.5]} 55... f4 {[%clk
0:02:27.5]} 56. Ng2 {[%clk 0:01:31.9]} 56... Nd5 {[%clk 0:02:08.5]} 57. g6
{[%clk 0:01:19.2]} 57... Kf6 {[%clk 0:02:04.9]} 58. h5 {[%clk 0:01:17.5]} 58...
Kg5 {[%clk 0:02:03.6]} 59. g7 {[%clk 0:01:14.7]} 59... Nf6 {[%clk 0:02:00.3]}
60. Nxf4 {[%clk 0:01:13]} 60... Kh6 {[%clk 0:01:58.9]} 61. Ne6 {[%clk
0:01:05.3]} 61... Kxh5 {[%clk 0:01:54.2]} 62. Kf4 {[%clk 0:01:02.6]} 62... Kg6
{[%clk 0:01:52.7]} 63. Ke5 {[%clk 0:00:55.6]} 63... Kf7 {[%clk 0:01:48.7]} 64.
Kf5 {[%clk 0:00:51.6]} 64... Ne8 {[%clk 0:01:44]} 65. Ke5 {[%clk 0:00:41.3]}
65... Nxg7 {[%clk 0:01:42.7]} 1/2-1/2

[Event "Live Chess"]
[Site "Chess.com"]
[Date "2023.05.21"]
[Round "-"]
[White "hturner40"]
[Black "Alfiedog12"]
[Result "1-0"]
[WhiteElo "1795"]
[BlackElo "870"]
[TimeControl "300"]
[EndTime "8:02:34 PDT"]
[Termination "hturner40 won by resignation"]

1. Nf3 {[%clk 0:04:53]} 1... d5 {[%clk 0:04:55.7]} 2. g3 {[%clk 0:04:51.9]} 2...
Nf6 {[%clk 0:04:54.3]} 3. Bg2 {[%clk 0:04:50.7]} 3... e6 {[%clk 0:04:53.1]} 4.
O-O {[%clk 0:04:49.4]} 4... Be7 {[%clk 0:04:49.7]} 5. d4 {[%clk 0:04:47.1]} 5...
O-O {[%clk 0:04:46]} 6. c4 {[%clk 0:04:45.9]} 6... Nc6 {[%clk 0:04:41.1]} 7. b3
{[%clk 0:04:32.5]} 7... b6 {[%clk 0:04:30.2]} 8. Bb2 {[%clk 0:04:27.3]} 8... Bb7
{[%clk 0:04:17]} 9. e3 {[%clk 0:04:17.9]} 9... a5 {[%clk 0:04:14.9]} 10. Nbd2
{[%clk 0:04:16.1]} 10... Nb4 {[%clk 0:04:03.2]} 11. Ne5 {[%clk 0:04:06.7]} 11...
Bd6 {[%clk 0:03:54.9]} 12. Ndf3 {[%clk 0:03:50.5]} 12... Ne4 {[%clk 0:03:39.1]}
13. a3 {[%clk 0:03:39.4]} 13... Nc6 {[%clk 0:03:30.3]} 14. Nxc6 {[%clk
0:03:20.9]} 14... Bxc6 {[%clk 0:03:28.1]} 15. Nd2 {[%clk 0:03:19.8]} 15... Nf6
{[%clk 0:03:19.6]} 16. Qc2 {[%clk 0:03:14.3]} 16... Re8 {[%clk 0:03:12.2]} 17.
e4 {[%clk 0:03:06.1]} 17... dxe4 {[%clk 0:03:07.3]} 18. Nxe4 {[%clk 0:03:04.6]}
18... Nxe4 {[%clk 0:03:06.3]} 19. Bxe4 {[%clk 0:03:02.3]} 19... Bxe4 {[%clk
0:03:04.4]} 20. Qxe4 {[%clk 0:03:01.1]} 20... f5 {[%clk 0:02:58.6]} 21. Qe2
{[%clk 0:02:45.7]} 21... e5 {[%clk 0:02:45.9]} 22. dxe5 {[%clk 0:02:41.6]} 22...
Bxe5 {[%clk 0:02:42.6]} 23. Bxe5 {[%clk 0:02:39]} 23... Qe7 {[%clk 0:02:25.4]}
24. f4 {[%clk 0:02:29.8]} 24... g5 {[%clk 0:02:21.8]} 25. Qh5 {[%clk 0:01:58.9]}
25... Qc5+ {[%clk 0:02:09.3]} 26. Kh1 {[%clk 0:01:49.2]} 26... Qc6+ {[%clk
0:02:03.4]} 27. Qf3 {[%clk 0:01:46.1]} 27... Qxf3+ {[%clk 0:01:59]} 28. Rxf3
{[%clk 0:01:44.2]} 28... g4 {[%clk 0:01:58.5]} 29. Rd3 {[%clk 0:01:42.3]} 29...
c6 {[%clk 0:01:44.1]} 30. Rad1 {[%clk 0:01:38.1]} 30... Re6 {[%clk 0:01:33.4]}
31. Rd7 {[%clk 0:01:32]} 31... c5 {[%clk 0:01:12.1]} 32. Rg7+ {[%clk 0:01:27.8]}
32... Kf8 {[%clk 0:01:06.4]} 33. Rdd7 {[%clk 0:01:17.9]} 33... Rae8 {[%clk
0:00:58.7]} 34. Rxh7 {[%clk 0:01:12.2]} 34... R8e7 {[%clk 0:00:52.8]} 35. Rdxe7
{[%clk 0:01:04.7]} 35... Rxe7 {[%clk 0:00:50.8]} 36. Bd6 {[%clk 0:01:02.8]}
36... Ke8 {[%clk 0:00:45.4]} 37. Rxe7+ {[%clk 0:01:01.1]} 37... Kd8 {[%clk
0:00:40.6]} 38. h4 {[%clk 0:00:57]} 1-0

[Event "Live Chess"]
[Site "Chess.com"]
[Date "2023.05.21"]
[Round "-"]
[White "Daniel_Gliddon_FA"]
[Black "Andysav3"]
[Result "0-1"]
[WhiteElo "1224"]
[BlackElo "1701"]
[TimeControl "300"]
[EndTime "8:02:35 PDT"]
[Termination "Andysav3 won by checkmate"]

1. e4 {[%clk 0:04:56.5]} 1... c5 {[%clk 0:04:58.1]} 2. c4 {[%clk 0:04:53.9]}
2... Nc6 {[%clk 0:04:55.9]} 3. Nc3 {[%clk 0:04:52.5]} 3... g6 {[%clk 0:04:51.6]}
4. g3 {[%clk 0:04:51.1]} 4... Bg7 {[%clk 0:04:50.7]} 5. a3 {[%clk 0:04:49.9]}
5... b6 {[%clk 0:04:42.5]} 6. Rb1 {[%clk 0:04:48.3]} 6... Bb7 {[%clk 0:04:41.6]}
7. Bg2 {[%clk 0:04:45.8]} 7... e6 {[%clk 0:04:35.9]} 8. Nge2 {[%clk 0:04:44.5]}
8... Nge7 {[%clk 0:04:33.2]} 9. d3 {[%clk 0:04:41.7]} 9... O-O {[%clk
0:04:28.3]} 10. O-O {[%clk 0:04:40]} 10... f5 {[%clk 0:04:25.9]} 11. f3 {[%clk
0:04:21.1]} 11... d5 {[%clk 0:04:12]} 12. Nf4 {[%clk 0:03:57.6]} 12... Qd7
{[%clk 0:04:00.1]} 13. exd5 {[%clk 0:03:53.9]} 13... exd5 {[%clk 0:03:58.2]} 14.
Nfxd5 {[%clk 0:03:51.2]} 14... Nd4 {[%clk 0:03:38.7]} 15. Nxe7+ {[%clk
0:03:45.3]} 15... Qxe7 {[%clk 0:03:37.4]} 16. Re1 {[%clk 0:03:43.7]} 16... Qd7
{[%clk 0:03:30.9]} 17. b4 {[%clk 0:03:37.3]} 17... Rad8 {[%clk 0:03:06.8]} 18.
Bb2 {[%clk 0:03:25.3]} 18... Rfe8 {[%clk 0:02:53]} 19. f4 {[%clk 0:03:15.7]}
19... Bxg2 {[%clk 0:02:38.5]} 20. Kxg2 {[%clk 0:03:03.9]} 20... Rxe1 {[%clk
0:02:03]} 21. Qxe1 {[%clk 0:02:57.5]} 21... Qb7+ {[%clk 0:01:59.1]} 22. Nd5
{[%clk 0:02:52.5]} 22... Rxd5 {[%clk 0:01:55.4]} 23. Qe8+ {[%clk 0:02:35.3]}
23... Bf8 {[%clk 0:01:53.8]} 24. cxd5 {[%clk 0:02:15.5]} 24... Qxd5+ {[%clk
0:01:52.2]} 25. Kh3 {[%clk 0:02:10.7]} 25... g5 {[%clk 0:01:20.5]} 26. Re1
{[%clk 0:01:52.2]} 26... g4+ {[%clk 0:01:16.1]} 27. Kh4 {[%clk 0:01:44.5]} 27...
Nf3+ {[%clk 0:01:14.4]} 28. Kh5 {[%clk 0:01:37.4]} 28... Nxe1 {[%clk 0:01:10.1]}
29. Qxe1 {[%clk 0:01:29.9]} 29... Qf7+ {[%clk 0:01:07.6]} 30. Kg5 {[%clk
0:01:20.6]} 30... Qg6+ {[%clk 0:01:01.2]} 31. Kh4 {[%clk 0:01:17.1]} 31... Qh6#
{[%clk 0:01:00.3]} 0-1

[Event "Live Chess"]
[Site "Chess.com"]
[Date "2023.05.21"]
[Round "-"]
[White "Ferrarifan27"]
[Black "Missedidea"]
[Result "1-0"]
[WhiteElo "2050"]
[BlackElo "1767"]
[TimeControl "300"]
[EndTime "8:03:06 PDT"]
[Termination "Ferrarifan27 won on time"]

1. e4 {[%clk 0:04:58.5]} 1... c5 {[%clk 0:04:58.1]} 2. Nf3 {[%clk 0:04:56.2]}
2... d6 {[%clk 0:04:57.2]} 3. d4 {[%clk 0:04:54.1]} 3... cxd4 {[%clk 0:04:55.9]}
4. Nxd4 {[%clk 0:04:54]} 4... Nf6 {[%clk 0:04:54.6]} 5. Nc3 {[%clk 0:04:52.6]}
5... g6 {[%clk 0:04:53.7]} 6. Be3 {[%clk 0:04:44.7]} 6... Bg7 {[%clk 0:04:50.3]}
7. f3 {[%clk 0:04:39.6]} 7... O-O {[%clk 0:04:48.8]} 8. Qd2 {[%clk 0:04:36.7]}
8... Nc6 {[%clk 0:04:47.7]} 9. O-O-O {[%clk 0:04:34.4]} 9... d5 {[%clk 0:04:46]}
10. Nxc6 {[%clk 0:04:31.6]} 10... bxc6 {[%clk 0:04:44.4]} 11. exd5 {[%clk
0:04:30.9]} 11... cxd5 {[%clk 0:04:43.5]} 12. Nxd5 {[%clk 0:04:30.1]} 12... Nxd5
{[%clk 0:04:42.3]} 13. Qxd5 {[%clk 0:04:28.9]} 13... Qc7 {[%clk 0:04:41.4]} 14.
Qc5 {[%clk 0:04:27.2]} 14... Qb8 {[%clk 0:04:29.8]} 15. b3 {[%clk 0:04:23.3]}
15... Bf5 {[%clk 0:04:21.9]} 16. Bd3 {[%clk 0:04:18.6]} 16... Rc8 {[%clk
0:04:18.3]} 17. Qa5 {[%clk 0:03:59]} 17... Bxd3 {[%clk 0:03:47.6]} 18. Rxd3
{[%clk 0:03:56.9]} 18... Qb7 {[%clk 0:03:33.2]} 19. Rhd1 {[%clk 0:03:45]} 19...
Qc6 {[%clk 0:03:28.4]} 20. Rd8+ {[%clk 0:03:41.1]} 20... Bf8 {[%clk 0:03:19.6]}
21. c4 {[%clk 0:03:29.7]} 21... Kg7 {[%clk 0:03:11.6]} 22. Rxc8 {[%clk
0:03:23.6]} 22... Rxc8 {[%clk 0:03:08.3]} 23. Rd8 {[%clk 0:03:19.7]} 23... Rxd8
{[%clk 0:02:23.3]} 24. Qxd8 {[%clk 0:03:15.9]} 24... g5 {[%clk 0:02:00.3]} 25.
Bxg5 {[%clk 0:02:56.6]} 25... e5 {[%clk 0:01:53.3]} 26. Qd5 {[%clk 0:02:45.2]}
26... Ba3+ {[%clk 0:01:47.5]} 27. Kd1 {[%clk 0:02:35]} 27... Qc7 {[%clk
0:01:37.7]} 28. Bc1 {[%clk 0:02:20.8]} 28... Bd6 {[%clk 0:01:28.3]} 29. Bb2
{[%clk 0:02:18.3]} 29... f6 {[%clk 0:01:24.1]} 30. Ke2 {[%clk 0:01:52.5]} 30...
Qb6 {[%clk 0:01:15.6]} 31. Kf1 {[%clk 0:01:37]} 31... Bb4 {[%clk 0:00:56.2]} 32.
Qd7+ {[%clk 0:01:33.7]} 32... Kg6 {[%clk 0:00:51.5]} 33. Qd3+ {[%clk 0:01:18.9]}
33... Kf7 {[%clk 0:00:49.3]} 34. Qxh7+ {[%clk 0:01:16.7]} 34... Ke6 {[%clk
0:00:46.4]} 35. Qd3 {[%clk 0:01:14.5]} 35... Qa5 {[%clk 0:00:39.7]} 36. Qd5+
{[%clk 0:01:08.9]} 36... Qxd5 {[%clk 0:00:37.7]} 37. cxd5+ {[%clk 0:01:08.8]}
37... Kxd5 {[%clk 0:00:36.5]} 38. Ke2 {[%clk 0:01:07.5]} 38... Be7 {[%clk
0:00:32.1]} 39. g4 {[%clk 0:01:05.9]} 39... Ke6 {[%clk 0:00:29.8]} 40. h4 {[%clk
0:01:04]} 40... f5 {[%clk 0:00:28.6]} 41. h5 {[%clk 0:01:03.2]} 41... Bg5 {[%clk
0:00:24.5]} 42. Bc3 {[%clk 0:00:58.2]} 42... e4 {[%clk 0:00:16.1]} 43. gxf5+
{[%clk 0:00:53.8]} 43... Kxf5 {[%clk 0:00:12.4]} 44. fxe4+ {[%clk 0:00:52.8]}
44... Kxe4 {[%clk 0:00:11.3]} 45. Bd2 {[%clk 0:00:51.5]} 45... Bf6 {[%clk
0:00:09.8]} 46. h6 {[%clk 0:00:50.6]} 46... Kf5 {[%clk 0:00:04.4]} 47. Kd3
{[%clk 0:00:48.5]} 47... Kg6 {[%clk 0:00:03.3]} 48. Kc4 {[%clk 0:00:46.8]} 1-0

[Event "Live Chess"]
[Site "Chess.com"]
[Date "2023.05.21"]
[Round "-"]
[White "raminguy"]
[Black "grillage"]
[Result "1-0"]
[WhiteElo "1962"]
[BlackElo "1782"]
[TimeControl "300"]
[EndTime "8:03:15 PDT"]
[Termination "raminguy won by resignation"]

1. d4 {[%clk 0:04:58.7]} 1... Nf6 {[%clk 0:04:58.4]} 2. Nc3 {[%clk 0:04:58.6]}
2... d5 {[%clk 0:04:56.1]} 3. Bf4 {[%clk 0:04:58.1]} 3... c5 {[%clk 0:04:55.2]}
4. e4 {[%clk 0:04:56.7]} 4... Nxe4 {[%clk 0:04:54.1]} 5. Nb5 {[%clk 0:04:54.5]}
5... Qa5+ {[%clk 0:04:48.9]} 6. c3 {[%clk 0:04:53.3]} 6... Na6 {[%clk
0:04:44.8]} 7. f3 {[%clk 0:04:51.5]} 7... Nf6 {[%clk 0:04:36.6]} 8. dxc5 {[%clk
0:04:49.6]} 8... e6 {[%clk 0:04:27.7]} 9. b4 {[%clk 0:04:48]} 9... Qd8 {[%clk
0:04:26.4]} 10. a4 {[%clk 0:04:41.6]} 10... Be7 {[%clk 0:04:23.8]} 11. Nd6+
{[%clk 0:04:34.9]} 11... Bxd6 {[%clk 0:04:21.1]} 12. Bxd6 {[%clk 0:04:34.8]}
12... b6 {[%clk 0:04:19.3]} 13. Bb5+ {[%clk 0:04:32.1]} 13... Bd7 {[%clk
0:04:17.6]} 14. Bxa6 {[%clk 0:04:31.2]} 14... bxc5 {[%clk 0:04:14]} 15. Bxc5
{[%clk 0:04:28.8]} 15... Rc8 {[%clk 0:04:08.1]} 16. Bxc8 {[%clk 0:04:27.1]}
16... Qxc8 {[%clk 0:04:04.7]} 17. Ne2 {[%clk 0:04:26.2]} 1-0

[Event "Live Chess"]
[Site "Chess.com"]
[Date "2023.05.21"]
[Round "-"]
[White "WilliamofOrange16th"]
[Black "manthanit"]
[Result "1-0"]
[WhiteElo "1855"]
[BlackElo "1102"]
[TimeControl "300"]
[EndTime "8:03:24 PDT"]
[Termination "WilliamofOrange16th won by checkmate"]

1. e4 {[%clk 0:04:58.2]} 1... e6 {[%clk 0:04:59.2]} 2. f4 {[%clk 0:04:53]} 2...
d5 {[%clk 0:04:58.3]} 3. e5 {[%clk 0:04:52.6]} 3... f6 {[%clk 0:04:49.9]} 4. Nf3
{[%clk 0:04:51.4]} 4... fxe5 {[%clk 0:04:48.1]} 5. fxe5 {[%clk 0:04:50.3]} 5...
Bc5 {[%clk 0:04:44.4]} 6. d4 {[%clk 0:04:49.4]} 6... Ne7 {[%clk 0:04:43.3]} 7.
dxc5 {[%clk 0:04:48]} 7... O-O {[%clk 0:04:42]} 8. Bd3 {[%clk 0:04:45.8]} 8...
Nbc6 {[%clk 0:04:33.3]} 9. O-O {[%clk 0:04:37.4]} 9... Ng6 {[%clk 0:04:32.3]}
10. Bg5 {[%clk 0:04:32.8]} 10... Qd7 {[%clk 0:04:26.6]} 11. a3 {[%clk
0:04:19.9]} 11... Ncxe5 {[%clk 0:04:25.3]} 12. Nxe5 {[%clk 0:04:16.9]} 12...
Nxe5 {[%clk 0:04:24.3]} 13. Bxh7+ {[%clk 0:04:13.1]} 13... Kxh7 {[%clk
0:04:22.4]} 14. Rxf8 {[%clk 0:04:12.1]} 14... Ng6 {[%clk 0:04:04.8]} 15. Qh5#
{[%clk 0:04:10]} 1-0

[Event "Live Chess"]
[Site "Chess.com"]
[Date "2023.05.21"]
[Round "-"]
[White "whatnot126"]
[Black "onemoretime1975"]
[Result "1-0"]
[WhiteElo "2070"]
[BlackElo "1845"]
[TimeControl "300"]
[EndTime "8:03:30 PDT"]
[Termination "whatnot126 won by resignation"]

1. e4 {[%clk 0:04:59.2]} 1... e6 {[%clk 0:04:58.9]} 2. d4 {[%clk 0:04:58.2]}
2... d5 {[%clk 0:04:57.8]} 3. e5 {[%clk 0:04:57.7]} 3... c5 {[%clk 0:04:56.3]}
4. c3 {[%clk 0:04:57]} 4... Nc6 {[%clk 0:04:55.1]} 5. Nf3 {[%clk 0:04:55.8]}
5... Bd7 {[%clk 0:04:53.6]} 6. Bd3 {[%clk 0:04:53.7]} 6... Qb6 {[%clk 0:04:51]}
7. O-O {[%clk 0:04:52.7]} 7... cxd4 {[%clk 0:04:49.4]} 8. cxd4 {[%clk
0:04:52.6]} 8... Nxd4 {[%clk 0:04:48.4]} 9. Nxd4 {[%clk 0:04:52.5]} 9... Qxd4
{[%clk 0:04:46.7]} 10. Nc3 {[%clk 0:04:52.2]} 10... a6 {[%clk 0:04:44.5]} 11.
Qe2 {[%clk 0:04:50.7]} 11... Bb4 {[%clk 0:04:30.6]} 12. Bd2 {[%clk 0:04:31.9]}
12... Qb6 {[%clk 0:04:17.1]} 13. a3 {[%clk 0:04:29.4]} 13... Be7 {[%clk
0:04:09]} 14. Kh1 {[%clk 0:04:26.8]} 14... Rc8 {[%clk 0:03:58.6]} 15. f4 {[%clk
0:04:20.4]} 15... g6 {[%clk 0:03:56]} 16. b4 {[%clk 0:03:44.4]} 16... h5 {[%clk
0:03:52.2]} 17. Rac1 {[%clk 0:03:23.9]} 17... Nh6 {[%clk 0:03:49.3]} 18. Be3
{[%clk 0:03:22]} 18... Qd8 {[%clk 0:03:44.2]} 19. Bd4 {[%clk 0:03:12.2]} 19...
O-O {[%clk 0:03:37.7]} 20. h3 {[%clk 0:02:58.8]} 20... h4 {[%clk 0:03:30.5]} 21.
Qf2 {[%clk 0:02:53.2]} 21... Kg7 {[%clk 0:03:13.5]} 22. Qb2 {[%clk 0:02:04.7]}
22... b5 {[%clk 0:02:45.1]} 23. Nxd5 {[%clk 0:01:59.4]} 23... Rxc1 {[%clk
0:02:39.1]} 24. Rxc1 {[%clk 0:01:57.9]} 24... Nf5 {[%clk 0:02:31.1]} 25. Nxe7
{[%clk 0:01:46.4]} 25... Qxe7 {[%clk 0:02:22.9]} 26. Bc5 {[%clk 0:01:42.6]}
26... Ng3+ {[%clk 0:02:18.1]} 27. Kh2 {[%clk 0:01:39.3]} 27... Qd8 {[%clk
0:02:11.1]} 28. Bxf8+ {[%clk 0:01:28.8]} 28... Kxf8 {[%clk 0:02:08.7]} 29. Qd4
{[%clk 0:01:27.8]} 29... Qe8 {[%clk 0:01:55.1]} 30. Qd6+ {[%clk 0:01:23.8]}
30... Kg7 {[%clk 0:01:46.6]} 31. Rc7 {[%clk 0:01:23.2]} 31... Bc8 {[%clk
0:01:44.2]} 32. Qc6 {[%clk 0:01:13]} 32... Qxc6 {[%clk 0:01:27.8]} 33. Rxc6
{[%clk 0:01:12.9]} 33... Bb7 {[%clk 0:01:26.9]} 34. Rc7 {[%clk 0:01:12.2]} 34...
Bd5 {[%clk 0:01:22.9]} 35. Ra7 {[%clk 0:01:11]} 35... Nh5 {[%clk 0:01:21]} 36.
Rxa6 {[%clk 0:01:03.4]} 36... Nxf4 {[%clk 0:01:19.3]} 37. Bxb5 {[%clk
0:01:00.7]} 37... Bxg2 {[%clk 0:01:14]} 38. Be8 {[%clk 0:00:58.2]} 38... g5
{[%clk 0:01:05.9]} 39. Ra7 {[%clk 0:00:56.7]} 39... Bxh3 {[%clk 0:01:01.7]} 40.
Rxf7+ {[%clk 0:00:55.2]} 40... Kg8 {[%clk 0:00:59.9]} 41. Rxf4 {[%clk
0:00:51.9]} 41... gxf4 {[%clk 0:00:58.9]} 42. Kxh3 {[%clk 0:00:51.4]} 42... Kf8
{[%clk 0:00:57.5]} 43. Bh5 {[%clk 0:00:50.6]} 43... Ke7 {[%clk 0:00:55.4]} 44.
Kxh4 {[%clk 0:00:50.1]} 44... Kd8 {[%clk 0:00:54]} 45. Kg4 {[%clk 0:00:49.7]}
1-0

[Event "Live Chess"]
[Site "Chess.com"]
[Date "2023.05.21"]
[Round "-"]
[White "HonestJoe1"]
[Black "toxic_rabbit"]
[Result "1-0"]
[WhiteElo "2094"]
[BlackElo "1955"]
[TimeControl "300"]
[EndTime "8:03:33 PDT"]
[Termination "HonestJoe1 won by resignation"]

1. d4 {[%clk 0:04:58.7]} 1... c5 {[%clk 0:04:58.8]} 2. d5 {[%clk 0:04:57.4]}
2... Nf6 {[%clk 0:04:57]} 3. c4 {[%clk 0:04:56.3]} 3... b5 {[%clk 0:04:56.6]} 4.
cxb5 {[%clk 0:04:54.9]} 4... a6 {[%clk 0:04:55.8]} 5. Nc3 {[%clk 0:04:53.8]}
5... d6 {[%clk 0:04:51.6]} 6. e4 {[%clk 0:04:52.5]} 6... g6 {[%clk 0:04:50.4]}
7. b6 {[%clk 0:04:48.7]} 7... Qxb6 {[%clk 0:04:49.1]} 8. Nf3 {[%clk 0:04:47.6]}
8... Bg7 {[%clk 0:04:48.2]} 9. Be2 {[%clk 0:04:46.6]} 9... Bg4 {[%clk
0:04:47.4]} 10. Nd2 {[%clk 0:04:41.9]} 10... Bxe2 {[%clk 0:04:43.3]} 11. Qxe2
{[%clk 0:04:40.8]} 11... Nbd7 {[%clk 0:04:42.7]} 12. Nc4 {[%clk 0:04:38.4]}
12... Qb7 {[%clk 0:04:36.2]} 13. O-O {[%clk 0:04:28.4]} 13... O-O {[%clk
0:04:31.6]} 14. Bg5 {[%clk 0:04:19.4]} 14... Rfe8 {[%clk 0:04:20.1]} 15. Rab1
{[%clk 0:04:14.3]} 15... h6 {[%clk 0:03:57.6]} 16. Bh4 {[%clk 0:04:09.9]} 16...
h5 {[%clk 0:03:47.3]} 17. Na5 {[%clk 0:03:57.2]} 17... Qb6 {[%clk 0:03:31.1]}
18. Nc6 {[%clk 0:03:55.8]} 18... Ne5 {[%clk 0:03:23]} 19. Nxe5 {[%clk
0:03:49.4]} 19... dxe5 {[%clk 0:03:22.9]} 20. f3 {[%clk 0:03:44.9]} 20... Rab8
{[%clk 0:03:10.6]} 21. Bf2 {[%clk 0:03:41.6]} 21... Nd7 {[%clk 0:03:08.5]} 22.
b3 {[%clk 0:03:31.2]} 22... f5 {[%clk 0:02:44.7]} 23. Rbc1 {[%clk 0:03:18.3]}
23... f4 {[%clk 0:02:10.7]} 24. Na4 {[%clk 0:03:11]} 1-0